bitfinex-derivatives/quotes_BNBF0:USTF0_20251225
["timestamp","ask_amount","ask_price","bid_price","bid_amount"]
[1766633115227,0.88184524,846.25,845.29,0.88432468]
[1766633118129,0.88184524,846.25,845.3,0.88432468]
[1766633119228,0.88184524,846.24,845.3,0.88432468]
[1766633119732,0.88184524,846.18,845.24,0.88432468]
[1766633124136,0.88184524,846.18,845.25,0.88432468]
[1766633124335,0.88184524,846.18,845.24,0.88432468]
[1766633125134,0.88184524,846.17,845.25,0.88432468]
[1766633126138,0.88184524,846.17,845.26,0.88432468]
[1766633127235,0.88184524,846.16,845.26,0.88432468]
[1766633128140,0.88184524,846.15,845.27,0.88432468]
[1766633129144,0.88184524,846.14,845.28,0.88432468]
[1766633130143,0.88184524,846.13,845.29,0.88432468]
[1766633131143,0.20572057,846.07,845.29,0.88432468]
[1766633131445,0.20572057,846.07,845.14,1.17923591]
[1766633131446,0.20572057,846.07,845.3,0.88432468]
[1766633132142,0.20572057,846.07,845.31,0.88432468]
[1766633134142,0.20572057,846.07,845.32,0.88432468]
[1766633142351,0.20572057,846.07,845.33,0.88432468]
[1766633158063,1.08756581,846.07,845.32,0.88432468]
[1766633160068,0.88184524,846.06,845.31,0.88432468]
[1766633161264,0.88184524,846.06,845.32,0.88432468]
[1766633162264,0.88184524,846.02,845.27,0.88432468]
[1766633162462,0.88184524,846.02,844.97,1.76885387]
[1766633162463,0.88184524,846.02,845.28,0.88432468]
[1766633163166,0.88184524,845.97,845.22,0.88432468]
[1766633164270,0.88184524,845.98,845.21,0.88432468]
[1766633166167,0.88184524,845.98,845.2,0.88432468]
[1766633166370,0.88184524,845.99,845.2,0.88432468]
[1766633168275,0.88184524,846.0,845.2,0.88432468]
[1766633168571,0.88184524,846.0,845.19,0.88432468]
[1766633172171,0.88184524,846.01,845.18,0.88432468]
[1766633174975,0.88184524,845.99,845.17,0.88432468]
[1766633175174,0.20572057,846.07,845.16,0.88432468]
[1766633175175,0.88184524,846.0,845.16,0.88432468]
[1766633181181,0.88184524,846.0,845.15,0.88432468]
[1766633188290,0.88184524,845.99,845.14,0.88432468]
[1766633193298,0.88184524,845.98,845.14,0.88432468]
[1766633195298,0.88184524,845.98,845.15,0.88432468]
[1766633198298,0.88184524,845.97,845.15,0.88432468]
[1766633199405,0.88184524,845.97,845.16,0.88432468]
[1766633201205,0.20572057,846.07,845.16,0.88432468]
[1766633201206,0.88184524,845.96,845.16,0.88432468]
[1766633201401,0.88184524,845.96,845.17,0.88432468]
[1766633202406,0.88184524,845.95,845.17,0.88432468]
[1766633203506,0.88184524,845.95,845.18,0.88432468]
[1766633204307,0.88184524,845.94,845.18,0.88432468]
[1766633205306,0.88184524,845.95,845.19,0.88432468]
[1766633206207,0.88184524,845.95,845.03,1.17923591]
[1766633206208,0.88184524,845.94,845.2,0.88432468]
[1766633206412,0.88184524,845.94,845.19,0.88432468]
[1766633207313,0.88184524,845.93,845.2,0.88432468]
[1766633218214,0.88184524,845.93,845.21,0.88432468]
[1766633220218,0.88184524,845.92,845.21,0.88432468]
[1766633220822,0.88184524,845.93,845.21,0.88432468]
[1766633224226,0.88184524,845.92,845.21,0.88432468]
[1766633224723,0.88184524,845.93,845.21,0.88432468]
[1766633228231,0.88184524,845.92,845.21,0.88432468]
[1766633228934,0.88184524,845.93,845.21,0.88432468]
[1766633229133,0.88184524,845.92,845.21,0.88432468]
[1766633232138,0.88184524,845.92,845.22,0.88432468]
[1766633265368,0.88184524,845.93,845.22,0.88432468]
[1766633281880,0.88184524,845.91,845.19,0.88432468]
[1766633282182,0.88184524,845.84,845.12,0.88432468]
[1766633282377,0.88184524,845.77,845.04,0.88432468]
[1766633282578,0.88184524,845.74,845.02,0.88432468]
[1766633283280,0.88184524,845.77,844.99,0.88432468]
[1766633284078,0.88184524,845.79,844.98,0.88432468]
[1766633285182,0.20572057,846.07,844.97,0.88432468]
[1766633285183,0.88184524,845.8,844.97,0.88432468]
[1766633285378,0.88184524,845.8,844.96,0.88432468]
[1766633286179,0.88184524,845.81,844.96,0.88432468]
[1766633287079,0.88184524,845.81,844.95,0.88432468]
[1766633288184,0.88184524,845.82,844.94,0.88432468]
[1766633288484,0.88184524,845.84,844.97,0.88432468]
[1766633289182,0.88184524,845.85,844.96,0.88432468]
[1766633291087,1.17741267,846.0,844.81,1.17923591]
[1766633291288,0.88061263,845.85,844.96,0.88544474]
[1766633291488,0.88061263,845.85,844.95,0.88544474]
[1766633292790,0.88061263,845.86,844.96,0.88544474]
[1766633292986,0.88061263,845.87,844.97,0.88544474]
[1766633294191,0.88061263,845.87,844.96,0.88544474]
[1766633299397,0.88061263,845.87,844.95,0.88544474]
[1766633301893,0.88061263,845.88,844.96,0.88544474]
[1766633305201,0.88061263,845.87,844.96,0.88544474]
[1766633306805,0.88061263,845.85,844.93,0.88544474]
[1766633307005,0.88061263,845.85,844.02,2.94808979]
[1766633307006,0.88061263,845.8,844.88,0.88544474]
[1766633307605,1.17741267,845.95,844.73,1.17923591]
[1766633307801,0.88056482,845.8,844.88,0.8851713]
[1766633308100,0.88056482,845.79,844.87,0.8851713]
[1766633308300,0.88056482,845.79,844.86,0.8851713]
[1766633317413,0.88056482,845.78,844.86,0.8851713]
[1766633318513,0.88056482,845.78,844.87,0.8851713]
[1766633320314,0.88056482,845.77,844.87,0.8851713]
[1766633321518,0.88056482,845.77,844.88,0.8851713]
[1766633322520,0.88056482,845.76,844.88,0.8851713]
[1766633323319,0.88056482,845.76,844.89,0.8851713]
[1766633324318,0.88056482,845.75,844.9,0.8851713]
[1766633326119,0.88056482,845.74,844.91,0.8851713]
[1766633327123,0.88056482,845.73,844.92,0.8851713]
[1766633329122,0.88056482,845.73,844.91,0.8851713]
[1766633329927,0.88056482,845.74,844.92,0.8851713]
[1766633330325,0.88056482,845.75,844.93,0.8851713]
[1766633331429,0.2058106,845.66,844.93,0.8851713]
[1766633341130,0.2058106,845.66,844.94,0.8851713]
[1766633346336,0.2058106,845.66,844.95,0.8851713]
[1766633346537,0.2058106,845.66,844.95,0.88697383]
[1766633349139,0.2058106,845.66,844.96,0.88697383]
[1766633351142,0.2058106,845.66,844.97,0.88697383]
[1766633370149,0.2058106,845.66,844.98,0.88697383]
[1766633403181,0.2058106,845.66,844.97,0.88697383]
[1766633403477,0.2058106,845.66,844.96,0.88697383]
[1766633403675,0.2058106,845.66,844.05,2.94808979]
[1766633403676,1.08795682,845.66,844.95,0.88697383]
[1766633404281,1.08795682,845.66,844.8,1.17923591]
[1766633404282,0.2058106,845.66,844.94,0.88697383]
[1766633404981,0.88214622,845.61,844.88,0.88697383]
[1766633405478,0.88214622,845.62,844.87,0.88697383]
[1766633406582,0.88214622,845.63,844.86,0.88697383]
[1766633406784,0.88214622,845.61,844.85,0.88697383]
[1766633407377,0.88214622,845.6,844.83,0.88697383]
[1766633408284,0.88214622,845.61,844.82,0.88697383]
[1766633409285,0.88214622,845.62,844.81,0.88697383]
[1766633411986,0.2058106,845.66,844.79,0.88697383]
[1766633411987,0.88214622,845.61,844.79,0.88697383]
[1766633413283,0.88214622,845.62,844.78,0.88697383]
[1766633415690,0.88214622,845.62,844.77,0.88697383]
[1766633417393,0.88214622,845.62,844.76,0.88697383]
[1766633418393,0.88214622,845.63,844.76,0.88697383]
[1766633420196,0.88214622,845.6,844.74,0.88697383]
[1766633420393,0.88214622,845.61,844.74,0.88697383]
[1766633421298,0.88214622,845.61,844.73,0.88697383]
[1766633425399,0.88214622,845.61,844.72,0.88697383]
[1766633425702,0.88214622,845.6,844.71,0.88697383]
[1766633438207,0.88214622,845.6,844.72,0.88697383]
[1766633439113,0.88214622,845.59,844.72,0.88697383]
[1766633442316,0.88214622,845.58,844.73,0.88697383]
[1766633444115,0.88214622,845.57,844.74,0.88697383]
[1766633446319,0.88214622,845.57,844.75,0.88697383]
[1766633447415,0.88214622,845.56,844.75,0.88697383]
[1766633448321,0.88214622,845.55,844.76,0.88697383]
[1766633449218,0.88214622,845.54,844.76,0.88697383]
[1766633449421,0.88214622,845.54,844.77,0.88697383]
[1766633451322,0.88214622,845.54,844.78,0.88697383]
[1766633454327,0.88214622,845.53,844.78,0.88697383]
[1766633460330,0.88214622,845.53,844.79,0.88697383]
[1766633462328,0.88214622,845.52,844.79,0.88697383]
[1766633467330,0.88214622,845.52,844.8,0.88697383]
[1766633470039,0.88214622,845.51,844.79,0.88697383]
[1766633478335,0.88246268,845.51,844.79,0.8879576]
[1766633481238,0.88246268,845.48,844.75,0.8879576]
[1766633482433,0.2058106,845.66,844.65,0.8879576]
[1766633482434,0.88246268,845.41,844.65,0.8879576]
[1766633483236,0.88246268,845.42,844.64,0.8879576]
[1766633483440,0.88246268,845.41,844.64,0.8879576]
[1766633484041,0.88246268,845.37,844.6,0.8879576]
[1766633484242,0.88246268,845.39,844.59,0.8879576]
[1766633484443,0.88246268,845.39,844.58,0.8879576]
[1766633486240,0.88246268,845.39,844.57,0.8879576]
[1766633486445,0.88246268,845.4,844.57,0.8879576]
[1766633487240,0.88246268,845.41,844.56,0.8879576]
[1766633489243,0.88246268,845.42,844.55,0.8879576]
[1766633491447,0.88246268,845.43,844.55,0.8879576]
[1766633492247,0.88246268,845.43,844.54,0.8879576]
[1766633495444,0.88246268,845.43,844.53,0.8879576]
[1766633495748,0.88246268,845.42,844.52,0.8879576]
[1766633496050,0.88246268,845.41,844.51,0.8879576]
[1766633497251,0.88246268,845.42,844.51,0.8879576]
[1766633498251,0.88246268,845.42,844.5,0.8879576]
[1766633503857,0.88246268,845.42,844.49,0.8879576]
[1766633504058,0.88246268,845.41,844.48,0.8879576]
[1766633504656,0.88246268,845.33,844.4,0.8879576]
[1766633504955,0.88246268,845.23,844.3,0.8879576]
[1766633505361,0.88246268,845.25,844.29,0.8879576]
[1766633505857,0.88246268,845.24,844.29,0.8879576]
[1766633506260,1.17741267,845.4,844.28,0.8879576]
[1766633506261,0.88246268,845.25,844.28,0.8879576]
[1766633507458,0.88246268,845.25,844.26,0.8879576]
[1766633508058,0.88246268,845.23,844.24,0.8879576]
[1766633508258,0.88246268,845.24,844.23,0.8879576]
[1766633509461,0.88246268,845.25,844.23,0.8879576]
[1766633509662,0.88246268,845.19,844.16,0.8879576]
[1766633509864,0.88246268,845.13,844.11,0.8879576]
[1766633510360,0.88246268,845.15,844.1,0.8879576]
[1766633511262,0.88246268,845.16,844.08,0.8879576]
[1766633512258,0.88246268,845.17,844.07,0.8879576]
[1766633513362,0.88246268,845.18,844.07,0.8879576]
[1766633514461,0.88246268,845.18,844.06,0.8879576]
[1766633515262,0.88246268,845.19,844.05,0.8879576]
[1766633516265,0.88246268,845.2,844.05,0.8879576]
[1766633516867,0.88246268,845.18,844.03,0.8879576]
[1766633517160,0.88246268,845.18,844.02,0.8879576]
[1766633519268,0.88246268,845.18,844.01,0.8879576]
[1766633519468,0.88246268,845.15,843.97,0.8879576]
[1766633520264,0.88246268,845.14,843.98,0.8879576]
[1766633520869,0.88246268,845.14,843.97,0.8879576]
[1766633521172,0.88246268,845.14,843.96,0.8879576]
[1766633521377,0.88246268,845.14,843.97,0.8879576]
[1766633522174,0.88246268,845.14,843.96,0.8879576]
[1766633523181,0.88246268,845.15,843.96,0.8879576]
[1766633523379,0.88246268,845.14,843.96,0.8879576]
[1766633524786,0.2058106,845.66,843.12,0.01380607]
[1766633524787,0.88246268,845.2,844.02,0.8879576]
[1766633525281,0.88246268,845.2,844.03,0.8879576]
[1766633526287,0.88246268,845.19,844.03,0.8879576]
[1766633526489,0.88246268,845.26,844.09,0.8879576]
[1766633526688,0.88246268,845.26,844.1,0.8879576]
[1766633528292,0.88246268,845.26,844.11,0.8879576]
[1766633529185,0.88246268,845.25,844.11,0.8879576]
[1766633531290,0.88246268,845.26,844.12,0.8879576]
[1766633531492,0.88246268,845.26,843.2,2.94808979]
[1766633531493,0.88246268,845.3,844.16,0.8879576]
[1766633531690,0.20595677,845.15,844.16,0.8879576]
[1766633531893,0.88246268,845.3,844.16,0.8879576]
[1766633532093,0.20595189,845.15,844.16,0.8879576]
[1766633533197,0.20595189,845.15,844.17,0.8879576]
[1766633533493,0.20595189,845.15,844.2,0.8879576]
[1766633534296,0.20595189,845.15,844.05,1.17923591]
[1766633534297,0.20595189,845.15,844.21,0.8879576]
[1766633535699,0.20595189,845.15,844.06,1.17923591]
[1766633535700,0.20595189,845.15,844.22,0.8879576]
[1766633537201,0.20595189,845.15,844.23,0.8879576]
[1766633539403,0.20595189,845.15,844.24,0.8879576]
[1766633540504,0.20595189,845.15,844.25,0.8879576]
[1766633542209,0.20595189,845.15,844.26,0.8879576]
[1766633543404,0.20595189,845.15,844.27,0.8879576]
[1766633544311,0.20595189,845.15,844.28,0.8879576]
[1766633546210,0.20595189,845.15,844.29,0.8879576]
[1766633547207,0.20595189,845.15,844.3,0.8879576]
[1766633548211,0.20595189,845.15,844.31,0.8879576]
[1766633549312,0.20595189,845.15,844.32,0.8879576]
[1766633557920,0.20595189,845.15,844.31,0.8879576]
[1766633561325,0.20595189,845.15,844.32,0.8879576]
[1766633566125,0.20595189,845.15,844.33,0.8879576]
[1766633567328,0.20595189,845.15,844.34,0.8879576]
[1766633568329,0.20595189,845.15,843.49,0.01520882]
[1766633568330,0.20595189,845.15,844.35,0.8879576]
[1766633569230,0.20595189,845.15,844.36,0.8879576]
[1766633570331,0.20595189,845.15,844.37,0.8879576]
[1766633572137,1.08841457,845.15,844.38,0.8879576]
[1766633574244,1.08841457,845.15,844.39,0.8879576]
[1766633575234,0.88246268,845.14,844.39,0.8879576]
[1766633576338,0.88246268,845.13,844.4,0.8879576]
[1766633578239,0.88246268,845.13,844.41,0.8879576]
[1766633602250,0.88246268,845.12,844.41,0.8879576]
[1766633643774,0.88246268,845.11,844.4,0.8879576]
[1766633644773,0.88246268,845.1,844.39,0.8879576]
[1766633646275,0.88246268,845.11,844.38,0.8879576]
[1766633658889,0.88246268,845.11,844.23,1.17923591]
[1766633659189,0.20595189,845.15,844.07,1.76885387]
[1766633659389,0.20595189,845.15,844.23,1.18418262]
[1766633659789,0.8833965,845.11,844.38,0.88813696]
[1766633660194,0.8833965,845.11,844.23,1.18418262]
[1766633660595,0.20595189,845.15,844.23,1.18418262]
[1766633661097,0.20595189,845.15,844.07,1.76885387]
[1766633661798,0.88339058,845.11,844.38,0.88813106]
[1766633662293,0.20595189,845.15,844.23,1.18417474]
[1766633662496,0.88338902,845.11,844.38,0.88812912]
[1766633674400,0.88338902,845.08,844.35,0.88812912]
[1766633676401,0.88338902,845.09,844.34,0.88812912]
[1766633688311,0.88338902,845.08,844.34,0.88812912]
[1766633689508,0.88338902,845.09,844.34,0.88812912]
[1766633705224,0.88338902,845.08,844.34,0.88812912]
[1766633712326,0.88338902,845.08,844.35,0.88812912]
[1766633717333,0.88338902,845.08,844.36,0.88812912]
[1766633719228,0.88338902,845.07,844.36,0.88812912]
[1766633745950,0.88338902,845.07,844.37,0.88812912]
[1766633762063,0.88338902,845.1,844.4,0.88812912]
[1766633762263,0.88338902,845.11,844.39,0.88812912]
[1766633763268,0.88338902,845.13,844.4,0.88812912]
[1766633766268,0.88338902,845.14,844.39,0.88812912]
[1766633768974,0.20595189,845.15,844.42,0.88812912]
[1766633769979,0.20595189,845.15,844.43,0.88812912]
[1766633772275,0.20595189,845.15,844.42,0.88812912]
[1766633774681,0.20595189,845.15,844.43,0.88812912]
[1766633776182,0.20595189,845.15,844.46,0.88812912]
[1766633776380,0.20595189,845.15,844.45,0.88812912]
[1766633776984,0.88338902,845.26,844.45,0.88812912]
[1766633777184,0.20592934,845.25,844.45,0.88812912]
[1766633777385,0.20592934,845.25,844.47,0.88812912]
[1766633779285,0.20592934,845.25,844.46,0.88812912]
[1766633781287,0.20592934,845.25,844.45,0.88812912]
[1766633786393,0.20592934,845.25,844.44,0.88812912]
[1766633792102,0.20592934,845.25,844.42,0.88812912]
[1766633792302,0.20592934,845.25,844.43,0.88812912]
[1766633794998,0.20592934,845.25,844.42,0.88812912]
[1766633795199,1.08931836,845.25,844.38,0.88812912]
[1766633795401,1.08931836,845.25,844.35,0.88812912]
[1766633795402,0.88338902,845.22,844.35,0.88812912]
[1766633795899,0.88338902,845.21,844.34,0.88812912]
[1766633797302,0.88338902,845.2,844.34,0.88812912]
[1766633797803,0.88338902,845.2,843.5,0.00970268]
[1766633797804,0.88338902,845.2,844.33,0.88812912]
[1766633798002,0.88338902,845.19,844.32,0.88812912]
[1766633799305,0.88338902,845.19,844.33,0.88812912]
[1766633800305,0.88338902,845.18,844.33,0.88812912]
[1766633802804,0.88338902,844.97,844.12,0.88812912]
[1766633803008,0.88338902,844.93,844.08,0.88812912]
[1766633803507,0.88338902,844.95,844.06,0.88812912]
[1766633803704,0.88338902,844.95,843.15,2.94808979]
[1766633803705,0.88338902,844.94,844.05,0.88812912]
[1766633804209,0.88338902,844.96,844.07,0.88812912]
[1766633804409,0.88338902,844.97,844.05,0.88812912]
[1766633804609,0.88338902,844.99,844.07,0.88812912]
[1766633805312,0.88338902,845.0,844.06,0.88812912]
[1766633806013,0.88338902,845.0,844.05,0.88812912]
[1766633806414,0.88338902,845.01,844.04,0.88812912]
[1766633807211,0.88338902,845.01,844.03,0.88812912]
[1766633807416,0.88338902,845.02,844.03,0.88812912]
[1766633808314,0.88338902,845.03,844.03,0.88812912]
[1766633809419,0.88338902,845.03,844.02,0.88812912]
[1766633810420,0.88338902,845.04,844.01,0.88812912]
[1766633811221,0.88338902,845.05,844.0,0.88812912]
[1766633813319,0.88338902,845.06,843.99,0.88812912]
[1766633815425,0.88338902,845.07,843.98,0.88812912]
[1766633816928,0.88338902,845.11,844.02,0.88812912]
[1766633817326,0.88338902,845.11,844.01,0.88812912]
[1766633819325,0.88338902,845.12,844.01,0.88812912]
[1766633825135,0.88338902,845.12,844.02,0.88812912]
[1766633825437,0.88338902,845.14,844.04,0.88812912]
[1766633826237,0.88338902,845.14,844.05,0.88812912]
[1766633826437,0.88338902,845.16,844.07,0.88812912]
[1766633828338,0.88338902,845.16,844.08,0.88812912]
[1766633829241,0.88338902,845.15,844.08,0.88812912]
[1766633830236,0.88338902,845.15,844.09,0.88812912]
[1766633831339,0.20592934,845.25,844.09,0.88812912]
[1766633831340,0.88338902,845.14,844.09,0.88812912]
[1766633832441,0.88338902,845.14,844.1,0.88812912]
[1766633833239,0.88338902,845.13,844.1,0.88812912]
[1766633834349,0.88338902,845.12,844.11,0.88812912]
[1766633835250,0.88338902,845.12,844.12,0.88812912]
[1766633836148,0.88338902,845.11,844.12,0.88812912]
[1766633837354,0.88338902,845.1,844.13,0.88812912]
[1766633838354,0.88338902,845.09,844.14,0.88812912]
[1766633838756,0.2059842,845.04,844.14,0.88812912]
[1766633839356,0.2059842,845.04,844.15,0.88812912]
[1766633840250,0.2059842,845.04,844.16,0.88812912]
[1766633841355,0.2059842,845.04,844.17,0.88812912]
[1766633843357,0.2059842,845.04,844.18,0.88812912]
[1766633845253,1.08937322,845.04,844.19,0.88812912]
[1766633846454,0.88338902,845.03,844.2,0.88812912]
[1766633847359,0.88338902,845.02,844.21,0.88812912]
[1766633853362,0.88338902,845.02,844.22,0.88812912]
[1766633855367,0.88338902,845.01,844.22,0.88812912]
[1766633858369,0.88338902,845.01,844.23,0.88812912]
[1766633859267,0.88338902,845.0,844.23,0.88812912]
[1766633861368,0.88338902,845.0,844.24,0.88812912]
[1766633862268,0.88338902,844.99,844.24,0.88812912]
[1766633867270,0.88338902,844.99,844.25,0.88812912]
[1766633868171,0.88338902,844.98,844.25,0.88812912]
[1766633869171,0.88338902,844.98,844.26,0.88812912]
[1766633870171,0.88338902,844.97,844.26,0.88812912]
[1766633880585,0.88338902,844.98,844.27,0.88812912]
[1766633882487,1.17785411,845.13,843.43,0.00906256]
[1766633882488,0.88338902,845.12,844.4,0.88812912]
[1766633883087,0.88338902,845.14,844.38,0.88812912]
[1766633884182,0.20596347,845.2,844.37,0.88812912]
[1766633884183,0.88338902,845.15,844.37,0.88812912]
[1766633884884,0.88338902,845.18,844.4,0.88812912]
[1766633885082,1.08935249,845.2,844.39,0.88812912]
[1766633886188,1.08935249,845.2,844.38,0.88812912]
[1766633887091,0.20596347,845.2,844.37,0.88812912]
[1766633887886,0.20596347,845.2,844.37,0.88675888]
[1766633889190,0.20596347,845.2,844.36,0.88675888]
[1766633891095,0.20596347,845.2,844.35,0.88675888]
[1766633893196,0.20596347,845.2,844.34,0.88675888]
[1766633895492,0.20596347,845.2,844.41,0.88675888]
[1766633896293,0.20596347,845.2,844.42,0.88675888]
[1766633897095,0.20596347,845.2,844.41,0.88675888]
[1766633898397,0.20596347,845.2,844.4,0.88675888]
[1766633901093,0.20596347,845.2,844.39,0.88675888]
[1766633901595,0.20596347,845.2,844.31,0.88675888]
[1766633901795,0.20596347,845.2,844.29,0.88675888]
[1766633905504,0.20596347,845.2,844.28,0.88675888]
[1766633908104,0.20596347,845.2,844.29,0.88675888]
[1766633909609,1.0880856,845.2,844.26,0.88675888]
[1766633913108,0.88212213,845.19,844.27,0.88675888]
[1766633917017,0.88212213,845.17,844.26,0.88675888]
[1766633917918,0.20596347,845.2,844.24,0.88675888]
[1766633917919,0.88212213,845.14,844.24,0.88675888]
[1766633918118,0.88212213,845.11,844.2,0.88675888]
[1766633918821,0.20596347,845.2,844.16,0.88675888]
[1766633918822,0.88212213,845.06,844.16,0.88675888]
[1766633919021,0.88212213,845.05,844.15,0.88675888]
[1766633920220,0.20596347,845.2,844.15,0.88675888]
[1766633920221,0.88212213,845.06,844.15,0.88675888]
[1766633921121,0.88212213,845.06,844.14,0.88675888]
[1766633928230,0.88212213,845.07,844.13,0.88675888]
[1766633932030,0.88212213,845.08,844.12,0.88675888]
[1766633937233,0.20596347,845.2,843.97,1.18417474]
[1766633937432,0.88068979,845.08,844.12,0.88546493]
[1766633941243,0.88068979,845.07,844.12,0.88546493]
[1766633942142,0.88068979,845.07,844.13,0.88546493]
[1766633943140,0.88068979,845.06,844.13,0.88546493]
[1766633944240,0.88068979,845.06,844.14,0.88546493]
[1766633945044,0.20596347,845.2,843.99,1.18417474]
[1766633945045,0.88068979,845.05,844.15,0.88546493]
[1766633946342,0.88068979,845.04,844.16,0.88546493]
[1766633949045,0.88068979,845.03,844.16,0.88546493]
[1766633949345,0.88068979,845.05,844.18,0.88546493]
[1766633950146,0.88068979,845.04,844.18,0.88546493]
[1766633951250,0.88068979,845.04,844.19,0.88546493]
[1766633953147,0.88068979,845.03,844.19,0.88546493]
[1766633954152,0.88068979,845.03,844.04,1.18417474]
[1766633954153,0.88068979,845.03,844.2,0.88546493]
[1766633955057,0.88068979,845.02,844.2,0.88546493]
[1766633956357,0.88068979,845.02,844.21,0.88546493]
[1766633958055,0.88068979,845.01,844.22,0.88546493]
[1766633960060,0.88068979,845.0,844.23,0.88546493]
[1766633961157,0.88068979,844.99,844.24,0.88546493]
[1766633962161,0.88068979,844.98,844.25,0.88546493]
[1766633963361,0.88068979,844.98,844.1,1.18417474]
[1766633963556,1.17785411,845.13,844.1,1.18417474]
[1766633963859,1.17785411,845.13,843.95,1.76885387]
[1766633964162,0.20596347,845.2,843.41,0.01249064]
[1766633964360,0.20596347,845.2,843.34,2.94808979]
[1766633964560,0.20596347,845.2,842.57,0.0098566]
[1766633964863,0.20596347,845.2,843.34,2.96133947]
[1766633965461,0.88445388,844.98,844.25,0.88840184]
[1766633965658,0.88443945,844.99,844.27,0.88835538]
[1766633968161,0.88443945,845.0,844.27,0.88835538]
[1766633969961,1.17927185,845.15,844.11,1.18453578]
[1766633970166,0.88434037,844.98,844.25,0.88828818]
[1766633976261,0.88434037,844.97,844.24,0.88828818]
[1766633980069,0.88434037,844.96,844.24,0.88828818]
[1766633980269,0.88434037,844.96,844.23,0.88828818]
[1766633990181,0.88434037,844.96,844.22,0.88828818]
[1766633994081,0.88434037,844.94,844.2,0.88828818]
[1766633995483,0.88434037,844.81,844.07,0.88828818]
[1766633996282,0.88434037,844.83,844.05,0.88828818]
[1766633996484,0.88434037,844.82,844.04,0.88828818]
[1766633997381,0.88434037,844.83,844.02,0.88828818]
[1766633998189,0.88434037,844.84,844.01,0.88828818]
[1766633999386,0.88434037,844.85,844.0,0.88828818]
[1766634001590,0.88434037,844.77,843.91,0.88828818]
[1766634001791,0.20596347,845.2,843.82,0.88828818]
[1766634001792,0.88434037,844.68,843.82,0.88828818]
[1766634002290,0.88434037,844.7,843.8,0.88828818]
[1766634003388,0.88434037,844.72,843.78,0.88828818]
[1766634004390,0.88434037,844.74,843.76,0.88828818]
[1766634005392,0.88434037,844.75,843.75,0.88828818]
[1766634005887,0.88434037,844.79,843.8,0.88828818]
[1766634006391,0.88434037,844.8,843.79,0.88828818]
[1766634007490,0.88434037,844.81,843.78,0.88828818]
[1766634009298,0.88434037,844.82,843.77,0.88828818]
[1766634011494,0.88434037,844.85,843.8,0.88828818]
[1766634012294,0.88434037,844.86,843.79,0.88828818]
[1766634014801,0.88434037,844.87,843.8,0.88828818]
[1766634015095,0.88434037,844.88,843.82,0.88828818]
[1766634015300,0.88434037,844.88,842.9,2.96133947]
[1766634015301,0.88434037,844.92,843.85,0.88828818]
[1766634016200,0.88434037,844.94,843.87,0.88828818]
[1766634016502,0.88434037,844.93,843.86,0.88828818]
[1766634017396,0.88434037,844.93,843.87,0.88828818]
[1766634018301,0.88434037,844.92,843.87,0.88828818]
[1766634019001,0.88434037,844.94,843.88,0.88828818]
[1766634019202,0.88434037,844.94,843.89,0.88828818]
[1766634020299,0.88434037,844.93,843.89,0.88828818]
[1766634023309,0.88434037,844.93,843.9,0.88828818]
[1766634024311,0.88434037,844.92,843.9,0.88828818]
[1766634027205,0.88434037,844.92,843.91,0.88828818]
[1766634027405,0.88434037,844.91,843.91,0.88828818]
[1766634030213,0.88434037,844.91,843.92,0.88828818]
[1766634030412,0.88434037,844.9,843.92,0.88828818]
[1766634032210,0.88434037,844.9,843.93,0.88828818]
[1766634032416,0.88434037,844.89,843.93,0.88828818]
[1766634034114,0.88434037,844.89,843.94,0.88828818]
[1766634034316,0.88434037,844.88,843.94,0.88828818]
[1766634036219,0.88434037,844.87,843.95,0.88828818]
[1766634037320,0.88434037,844.86,843.96,0.88828818]
[1766634038321,0.88434037,844.86,843.97,0.88828818]
[1766634039327,0.88434037,844.85,843.97,0.88828818]
[1766634040322,0.88434037,844.84,843.98,0.88828818]
[1766634046329,0.88434037,844.85,843.99,0.88828818]
[1766634047231,0.88434037,844.84,843.99,0.88828818]
[1766634048132,0.88434037,844.85,844.0,0.88828818]
[1766634049228,0.88434037,844.84,844.01,0.88828818]
[1766634050227,0.88434037,844.83,844.01,0.88828818]
[1766634051429,0.88434037,844.83,844.02,0.88828818]
[1766634052434,0.88434037,844.9,844.1,0.88828818]
[1766634059233,0.88434037,844.9,844.11,0.88828818]
[1766634060238,0.88434037,844.89,844.11,0.88828818]
[1766634062240,0.88434037,844.9,844.11,0.88828818]
[1766634063340,0.88434037,844.9,844.1,0.88828818]
[1766634067341,0.88434037,844.9,843.95,1.18453578]
[1766634067342,0.88434037,844.88,844.08,0.88828818]
[1766634067641,0.20596347,845.2,844.02,0.88828818]
[1766634067642,0.88434037,844.82,844.02,0.88828818]
[1766634068541,0.20596347,845.2,844.0,0.88828818]
[1766634068542,0.88434037,844.8,844.0,0.88828818]
[1766634068739,0.88434037,844.76,843.95,0.88828818]
[1766634071246,0.88434037,844.77,843.95,0.88828818]
[1766634073245,0.88434037,844.77,843.94,0.88828818]
[1766634075551,0.88434037,844.79,843.96,0.88828818]
[1766634076347,0.88434037,844.79,843.95,0.88828818]
[1766634082754,0.20605555,844.71,843.95,0.88828818]
[1766634086954,0.20605555,844.71,843.93,0.88828818]
[1766634089861,0.88434037,844.69,843.83,0.88828818]
[1766634090256,0.88434037,844.69,843.82,0.88828818]
[1766634091358,0.88434037,844.7,843.82,0.88828818]